Workbook

Sheet LD RD 30OCT14
A1: Ex-Works - HAZIRA / GANDHAR / BARODA
A2: State | B2: Pricing Zone | C2: Locational Discount | D2: Regional Discount | E2: State | F2: Pricing Zone | G2: Locational Discount | H2: Regional Discount
A3: GUJARAT | B3: AHMEDABAD | D3: 500 | E3: DAMAN & DIU | F3: DAMAN | G3: 700 | H3: 1000
A4: GUJARAT | B4: BARODA | D4: 500 | E4: DAMAN & DIU | F4: DIU | G4: 700 | H4: 500
A5: GUJARAT | B5: BHAVNAGAR | D5: 500 | E5: DADRA, NAGARHAVELI | F5: SILVASSA | G5: 700 | H5: 1000
A6: GUJARAT | B6: GANDHIDHAM | D6: 1500 | E6: DELHI | F6: DELHI | G6: 700 | H6: 250
A7: GUJARAT | B7: KALOL/MEHSANA | D7: 500 | E7: HARYANA | F7: FARIDABAD | G7: 700 | H7: 250
A8: GUJARAT | B8: RAJKOT | D8: 1000 | E8: HARYANA | F8: GURGAON | G8: 700 | H8: 250
A9: GUJARAT | B9: SURAT | D9: 500 | E9: HARYANA | F9: PANIPAT | G9: 700 | H9: 250
A10: GUJARAT | B10: VALSAD | D10: 500 | E10: ANDHRA PRADESH | F10: CUDDAPAH | G10: 700 | H10: 2500
A11: RAJASTHAN | B11: BHIWADI | C11: 700 | D11: 250 | E11: TELANGANA | F11: HYDERABAD | G11: 700 | H11: 1500
A12: RAJASTHAN | B12: JAIPUR | C12: 700 | D12: 500 | E12: ANDHRA PRADESH | F12: NANDYAL | G12: 700 | H12: 2000
A13: RAJASTHAN | B13: JODHPUR | C13: 700 | D13: 500 | E13: TELANGANA | F13: SURYAPET | G13: 700 | H13: 1500
A14: RAJASTHAN | B14: KOTA | C14: 700 | D14: 500 | E14: ANDHRA PRADESH | F14: TIRUPATI | G14: 700 | H14: 2500
A15: RAJASTHAN | B15: UDAIPUR | C15: 700 | D15: 500 | E15: ANDHRA PRADESH | F15: VIJAYAWADA | G15: 700 | H15: 1500
A16: KARNATAKA | B16: BENGALURU | C16: 700 | D16: 2500 | E16: ANDHRA PRADESH | F16: VISHAKAPATNAM | G16: 700 | H16: 1500
A17: KARNATAKA | B17: BELLARY | C17: 700 | D17: 2500 | E17: CHHATISGARH | F17: BILASPUR | G17: 700 | H17: 1500
A18: KARNATAKA | B18: GULBARGA | C18: 700 | D18: 1500 | E18: CHHATISGARH | F18: RAIPUR | G18: 700 | H18: 1500
A19: KARNATAKA | B19: HUBLI | C19: 700 | D19: 2000 | E19: MADHYA PRADESH | F19: BHOPAL | G19: 700 | H19: 500
A20: KARNATAKA | B20: MANGALORE | C20: 700 | D20: 2500 | E20: MADHYA PRADESH | F20: GWALIOR | G20: 700 | H20: 1000
A21: ASSAM | B21: GUWAHATI | C21: 700 | D21: 2500 | E21: MADHYA PRADESH | F21: INDORE | G21: 700 | H21: 1000
A22: BIHAR | B22: PATNA | C22: 700 | D22: 2500 | E22: MADHYA PRADESH | F22: JABALPUR | G22: 700 | H22: 1000
A23: JHARKHAND | B23: JAMSHEDPUR | C23: 700 | D23: 2500 | E23: MADHYA PRADESH | F23: SENDHWA | G23: 700 | H23: 1500
A24: JHARKHAND | B24: RANCHI | C24: 700 | D24: 2500 | E24: UTTARANCHAL | F24: DEHRADUN | G24: 700 | H24: 1000
A25: MEGHALAYA | B25: BYRNIHAT | C25: 700 | D25: 2500 | E25: UTTARANCHAL | F25: RUDRAPUR | G25: 700 | H25: 1000
A26: ODISHA | B26: BALASORE | C26: 700 | D26: 2500 | E26: UTTAR PRADESH | F26: AGRA | G26: 700 | H26: 500
A27: ODISHA | B27: BARGARH | C27: 700 | D27: 2500 | E27: UTTAR PRADESH | F27: GHAZIABAD | G27: 700 | H27: 500
A28: ODISHA | B28: CUTTACK | C28: 700 | D28: 2500 | E28: UTTAR PRADESH | F28: KANPUR | G28: 700 | H28: 1000
A29: SIKKIM | B29: GANGTOK | C29: 700 | D29: 2500 | E29: UTTAR PRADESH | F29: SAHARANPUR | G29: 700
A30: TRIPURA | B30: AGARTALA | C30: 700 | D30: 1500 | E30: UTTAR PRADESH | F30: VARANASI | G30: 700 | H30: 1500
A31: WEST BENGAL | B31: KOLKATA | C31: 700 | D31: 2500 | E31: KERALA | F31: CALICUT | G31: 700 | H31: 2500
A32: WEST BENGAL | B32: JALPAIGURI | C32: 700 | D32: 2500 | E32: KERALA | F32: KOCHI | G32: 700 | H32: 2500
A33: WEST BENGAL | B33: PURULIA | C33: 700 | D33: 2500 | E33: KERALA | F33: THIRUVANANTHAPURAM | G33: 700 | H33: 2500
A34: CHANDIGARH | B34: CHANDIGARH | C34: 700 | E34: PUDUCHERRY | F34: PUDUCHERRY | G34: 700 | H34: 2500
A35: HIMACHAL PRADESH | B35: BADDI | C35: 700 | E35: PUDUCHERRY | F35: YANAM | G35: 700 | H35: 1500
A36: HIMACHAL PRADESH | B36: KALAAMB | C36: 700 | E36: TAMIL NADU | F36: CHENNAI | G36: 700 | H36: 2500
A37: JAMMU & KASHMIR | B37: JAMMU | C37: 700 | E37: TAMIL NADU | F37: COIMBATORE | G37: 700 | H37: 2500
A38: JAMMU & KASHMIR | B38: SRINAGAR | C38: 700 | E38: TAMIL NADU | F38: HOSUR | G38: 700 | H38: 2500
A39: PUNJAB | B39: LUDHIANA | C39: 700 | E39: TAMIL NADU | F39: KARUR | G39: 700 | H39: 2500
E40: TAMIL NADU | F40: MADURAI | G40: 700 | H40: 2500
E41: TAMIL NADU | F41: SALEM | G41: 700 | H41: 2500
E42: TAMIL NADU | F42: TUTICORIN | G42: 700 | H42: 2500
E43: GOA | F43: PANJIM | G43: 700 | H43: 1500
E44: MAHARASHTRA | F44: AURANGABAD | G44: 700 | H44: 1500
E45: MAHARASHTRA | F45: BHIWANDI | G45: 700 | H45: 1500
E46: MAHARASHTRA | F46: JALGAON | G46: 700 | H46: 1000
E47: MAHARASHTRA | F47: KOLHAPUR | G47: 700 | H47: 1500
E48: MAHARASHTRA | F48: MUMBAI | G48: 700 | H48: 1500
E49: MAHARASHTRA | F49: NAGPUR | G49: 700 | H49: 1000
E50: MAHARASHTRA | F50: NASHIK | G50: 700 | H50: 1500
E51: MAHARASHTRA | F51: PUNE | G51: 700 | H51: 1500
E52: MAHARASHTRA | F52: SOLAPUR | G52: 700 | H52: 1500
E53: ANDAMAN & NICOBAR | F53: PORT BLAIR | G53: 700 | H53: 250
E54: MADHYA PRADESH | F54: TIKAMGARH | G54: 700 | H54: 1500

Sheet 30TH OCT 14 DEPOT
A1: EX DEPOT PRICE 30.10.14
D2: PRIME-GRADES | I2: OFF-GRADES
D3: 67-01/67BER01/67GER01 | E3: 67-11 | F3: 57GER01 | G3: 57GMR01 | H3: 67GER01F | I3: 67-03/67BER03/67GER03 | J3: 57GMR03
A5: MUMBAI /PANVEL | B5: CRDT. | C5: BASIC | D5: 69437 | E5: =D5+500 -> 69937 | F5: =D5+1500 -> 70937 | G5: =D5+1500 -> 70937 | H5: =D5+300 -> 69737 | I5: =D5-1000 -> 68437 | J5: =D5+500 -> 69937
C6: EX.DUTY 12.36% | D6: =SUM(D5*12.36%) -> 8582.4132 | E6: 8644.2132 | F6: 8767.8132 | G6: 8767.8132 | H6: 8619.4932 | I6: 8458.8132 | J6: 8644.2132
C7: TRADE DISC. | D7: 0 | E7: 0 | F7: 0 | G7: 0 | H7: 0 | I7: 0 | J7: 0
C8: EX-GODOWN | D8: =D5+D6 -> 78019.4132 | E8: 78581.2132 | F8: 79704.8132 | G8: 79704.8132 | H8: 78356.4932 | I8: 76895.8132 | J8: 78581.2132
B9: CASH | C9: CASH.DISC | D9: 700 | E9: =D9 -> 700 | F9: 700 | G9: 700 | H9: 700 | I9: 700 | J9: 700
C10: EX-GODOWN | D10: =D8-D9 -> 77319.4132 | E10: 77881.2132 | F10: 79004.8132 | G10: 79004.8132 | H10: 77656.4932 | I10: 76195.8132 | J10: 77881.2132
A12: Daman | B12: CRDT. | C12: BASIC | D12: =D5-145 -> 69292 | E12: =D12+500 -> 69792 | F12: =D12+1500 -> 70792 | G12: =D12+1500 -> 70792 | H12: =D12+300 -> 69592 | I12: =D12-1000 -> 68292 | J12: =D12+500 -> 69792
C13: EX.DUTY 12.36% | D13: =SUM(D12*12.36%) -> 8564.4912 | E13: 8626.2912 | F13: 8749.8912 | G13: 8749.8912 | H13: 8601.5712 | I13: 8440.8912 | J13: 8626.2912
C14: TRADE DISC. | D14: 0 | E14: 0 | F14: 0 | G14: 0 | H14: 0 | I14: 0 | J14: 0
C15: EX-GODOWN | D15: =D12+D13 -> 77856.4912 | E15: 78418.2912 | F15: 79541.8912 | G15: 79541.8912 | H15: 78193.5712 | I15: 76732.8912 | J15: 78418.2912
B16: CASH | C16: CASH.DISC | D16: =D9 -> 700 | E16: =E9 -> 700 | F16: 700 | G16: 700 | H16: 700 | I16: 700 | J16: 700
C17: EX-GODOWN | D17: =D15-D16 -> 77156.4912 | E17: 77718.2912 | F17: 78841.8912 | G17: 78841.8912 | H17: 77493.5712 | I17: 76032.8912 | J17: 77718.2912
A19: Jalgaon | B19: CRDT. | C19: BASIC | D19: =D5+432 -> 69869 | E19: =D19+500 -> 70369 | F19: =D19+1500 -> 71369 | G19: =D19+1500 -> 71369 | H19: =D19+300 -> 70169 | I19: =D19-1000 -> 68869 | J19: =D19+500 -> 70369
C20: EX.DUTY 12.36% | D20: =SUM(D19*12.36%) -> 8635.8084 | E20: 8697.6084 | F20: 8821.2084 | G20: 8821.2084 | H20: 8672.8884 | I20: 8512.2084 | J20: 8697.6084
C21: TRADE DISC. | D21: 0 | E21: 0 | F21: 0 | G21: 0 | H21: 0 | I21: 0 | J21: 0
C22: EX-GODOWN | D22: =D19+D20 -> 78504.8084 | E22: 79066.6084 | F22: 80190.2084 | G22: 80190.2084 | H22: 78841.8884 | I22: 77381.2084 | J22: 79066.6084
B23: CASH | C23: CASH.DISC | D23: =D9 -> 700 | E23: =E9 -> 700 | F23: 700 | G23: 700 | H23: 700 | I23: 700 | J23: 700
C24: EX-GODOWN | D24: =D22-D23 -> 77804.8084 | E24: 78366.6084 | F24: 79490.2084 | G24: 79490.2084 | H24: 78141.8884 | I24: 76681.2084 | J24: 78366.6084
A26: Pune | B26: CRDT. | C26: BASIC | D26: =D5+603 -> 70040 | E26: =D26+500 -> 70540 | F26: =D26+1500 -> 71540 | G26: =D26+1500 -> 71540 | H26: =D26+300 -> 70340 | I26: =D26-1000 -> 69040 | J26: =D26+500 -> 70540
C27: EX.DUTY 12.36% | D27: =SUM(D26*12.36%) -> 8656.944 | E27: 8718.744 | F27: 8842.344 | G27: 8842.344 | H27: 8694.024 | I27: 8533.344 | J27: 8718.744
C28: TRADE DISC. | D28: 0 | E28: 0 | F28: 0 | G28: 0 | H28: 0 | I28: 0 | J28: 0
C29: EX-GODOWN | D29: =D26+D27 -> 78696.944 | E29: 79258.744 | F29: 80382.344 | G29: 80382.344 | H29: 79034.024 | I29: 77573.344 | J29: 79258.744
B30: CASH | C30: CASH.DISC | D30: =D9 -> 700 | E30: =E9 -> 700 | F30: 700 | G30: 700 | H30: 700 | I30: 700 | J30: 700
C31: EX-GODOWN | D31: =D29-D30 -> 77996.944 | E31: 78558.744 | F31: 79682.344 | G31: 79682.344 | H31: 78334.024 | I31: 76873.344 | J31: 78558.744
A33: Silvassa | B33: CRDT. | C33: BASIC | D33: =D5-129 -> 69308 | E33: =D33+500 -> 69808 | F33: =D33+1500 -> 70808 | G33: =D33+1500 -> 70808 | H33: =D33+300 -> 69608 | I33: =D33-1000 -> 68308 | J33: =D33+500 -> 69808
C34: EX.DUTY 12.36% | D34: =SUM(D33*12.36%) -> 8566.4688 | E34: 8628.2688 | F34: 8751.8688 | G34: 8751.8688 | H34: 8603.5488 | I34: 8442.8688 | J34: 8628.2688
C35: TRADE DISC. | D35: 0 | E35: 0 | F35: 0 | G35: 0 | H35: 0 | I35: 0 | J35: 0
C36: EX-GODOWN | D36: =D33+D34 -> 77874.4688 | E36: 78436.2688 | F36: 79559.8688 | G36: 79559.8688 | H36: 78211.5488 | I36: 76750.8688 | J36: 78436.2688
B37: CASH | C37: CASH.DISC | D37: =D9 -> 700 | E37: =E9 -> 700 | F37: 700 | G37: 700 | H37: 700 | I37: 700 | J37: 700
C38: EX-GODOWN | D38: =D36-D37 -> 77174.4688 | E38: 77736.2688 | F38: 78859.8688 | G38: 78859.8688 | H38: 77511.5488 | I38: 76050.8688 | J38: 77736.2688
A40: Suryapet-hyd | B40: CRDT. | C40: BASIC | D40: =D5+2051 -> 71488 | E40: =D40+500 -> 71988 | F40: =D40+1500 -> 72988 | G40: =D40+1500 -> 72988 | H40: =D40+300 -> 71788 | I40: =D40-1000 -> 70488 | J40: =D40+500 -> 71988
C41: EX.DUTY 12.36% | D41: =SUM(D40*12.36%) -> 8835.9168 | E41: 8897.7168 | F41: 9021.3168 | G41: 9021.3168 | H41: 8872.9968 | I41: 8712.3168 | J41: 8897.7168
C42: TRADE DISC. | D42: 0 | E42: 0 | F42: 0 | G42: 0 | H42: 0 | I42: 0 | J42: 0
C43: EX-GODOWN | D43: =D40+D41 -> 80323.9168 | E43: 80885.7168 | F43: 82009.3168 | G43: 82009.3168 | H43: 80660.9968 | I43: 79200.3168 | J43: 80885.7168
B44: CASH | C44: CASH.DISC | D44: =D9 -> 700 | E44: =E9 -> 700 | F44: 700 | G44: 700 | H44: 700 | I44: 700 | J44: 700
C45: EX-GODOWN | D45: =D43-D44 -> 79623.9168 | E45: 80185.7168 | F45: 81309.3168 | G45: 81309.3168 | H45: 79960.9968 | I45: 78500.3168 | J45: 80185.7168
A47: Salem | B47: CRDT. | C47: BASIC | D47: =D5+2052 -> 71489 | E47: =D47+500 -> 71989 | F47: =D47+1500 -> 72989 | G47: =D47+1500 -> 72989 | H47: =D47+300 -> 71789 | I47: =D47-1000 -> 70489 | J47: =D47+500 -> 71989
C48: EX.DUTY 12.36% | D48: =SUM(D47*12.36%) -> 8836.0404 | E48: 8897.8404 | F48: 9021.4404 | G48: 9021.4404 | H48: 8873.1204 | I48: 8712.4404 | J48: 8897.8404
C49: TRADE DISC. | D49: =D9 -> 700 | E49: =E9 -> 700 | F49: 700 | G49: 700 | H49: 700 | I49: 700 | J49: 700
C50: EX-GODOWN | D50: =D47+D48 -> 80325.0404 | E50: 80886.8404 | F50: 82010.4404 | G50: 82010.4404 | H50: 80662.1204 | I50: 79201.4404 | J50: 80886.8404
B51: CASH | C51: CASH.DISC | D51: =D9 -> 700 | E51: =E9 -> 700 | F51: 700 | G51: 700 | H51: 700 | I51: 700 | J51: 700
C52: EX-GODOWN | D52: =D50-D51 -> 79625.0404 | E52: 80186.8404 | F52: 81310.4404 | G52: 81310.4404 | H52: 79962.1204 | I52: 78501.4404 | J52: 80186.8404
A54: Baddi | B54: CRDT. | C54: BASIC | D54: =D5+3588 -> 73025 | E54: =D54+500 -> 73525 | F54: =D54+1500 -> 74525 | G54: =D54+1500 -> 74525 | H54: =D54+300 -> 73325 | I54: =D54-1000 -> 72025 | J54: =D54+500 -> 73525
C55: EX.DUTY 12.36% | D55: =SUM(D54*12.36%) -> 9025.89 | E55: 9087.69 | F55: 9211.29 | G55: 9211.29 | H55: 9062.97 | I55: 8902.29 | J55: 9087.69
C56: TRADE DISC. | D56: 0 | E56: 0 | F56: 0 | G56: 0 | H56: 0 | I56: 0 | J56: 0
C57: EX-GODOWN | D57: =D54+D55 -> 82050.89 | E57: 82612.69 | F57: 83736.29 | G57: 83736.29 | H57: 82387.97 | I57: 80927.29 | J57: 82612.69
B58: CASH | C58: CASH.DISC | D58: =D9 -> 700 | E58: =E9 -> 700 | F58: 700 | G58: 700 | H58: 700 | I58: 700 | J58: 700
C59: EX-GODOWN | D59: =D57-D58 -> 81350.89 | E59: 81912.69 | F59: 83036.29 | G59: 83036.29 | H59: 81687.97 | I59: 80227.29 | J59: 81912.69
A61: JAIPUR | B61: CRDT. | C61: BASIC | D61: =D5+1604 -> 71041 | E61: =D61+500 -> 71541 | F61: =D61+1500 -> 72541 | G61: =D61+1500 -> 72541 | H61: =D61+300 -> 71341 | I61: =D61-1000 -> 70041 | J61: =D61+500 -> 71541
C62: EX.DUTY 12.36% | D62: =SUM(D61*12.36%) -> 8780.6676 | E62: 8842.4676 | F62: 8966.0676 | G62: 8966.0676 | H62: 8817.7476 | I62: 8657.0676 | J62: 8842.4676
C63: TRADE DISC. | D63: 0 | E63: 0 | F63: 0 | G63: 0 | H63: 0 | I63: 0 | J63: 0
C64: EX-GODOWN | D64: =D61+D62 -> 79821.6676 | E64: 80383.4676 | F64: 81507.0676 | G64: 81507.0676 | H64: 80158.7476 | I64: 78698.0676 | J64: 80383.4676
B65: CASH | C65: CASH.DISC | D65: =D16 -> 700 | E65: =E16 -> 700 | F65: 700 | G65: 700 | H65: 700 | I65: 700 | J65: 700
C66: EX-GODOWN | D66: =D64-D65 -> 79121.6676 | E66: 79683.4676 | F66: 80807.0676 | G66: 80807.0676 | H66: 79458.7476 | I66: 77998.0676 | J66: 79683.4676

Sheet 30TH OCT EX PL
A1: EX WORKS PRICE 30.10.14
A2: EX-WORKS - HAZIRA / BARODA / GANDHAR Location Disc in MAHARASHTRA , DAMAN , SILVASSA.
C3: CREDIT | K3: CASH
A4: GRADE | B4: NET | C4: LESS | D4: LESS | E4: EXCISE | F4: CST | G4: LANDED | I4: NET | J4: LESS | K4: Less | L4: LESS | M4: EXCISE | N4: CST | O4: LANDED
B5: BASIC | C5: LOC DISC | D5: REG DISC | E5: 0.1236 | F5: 0.02 | G5: EX-PLANT | I5: BASIC | J5: LOC DISC | K5: Cach Disc | L5: REG DISC | M5: 0.1236 | N5: =F5 -> 0.02 | O5: EX-PLANT
A6: 67-01/67BER01/67GER01 | B6: 69500 | C6: 700 | D6: AS APPLICABLE | E6: =(B6-C6)*$E$11 -> 8503.68 | F6: =(B6-C6+E6)*$F$11 -> 1546.0736 | G6: =(B6-C6)+E6+F6 -> 78849.7536 | I6: =B6 -> 69500 | J6: =C6 -> 700 | K6: 700 | L6: AS APPLICABLE | M6: =(I6-J6-K6)*$E$11 -> 8417.16 | N6: =(I6-J6-K6+M6)*$F$11 -> 1530.3432 | O6: =I6-J6-K6+M6+N6 -> 78047.5032
A7: 67-11 | B7: =B6+500 -> 70000 | C7: 700 | D7: AS APPLICABLE | E7: 8565.48 | F7: 1557.3096 | G7: 79422.7896 | I7: 70000 | J7: 700 | K7: =K6 -> 700 | L7: AS APPLICABLE | M7: =(I7-J7-K7)*$E$11 -> 8478.96 | N7: 1541.5792 | O7: 78620.5392
A8: 67-03/67BER03/67GER03 | B8: =B6-1000 -> 68500 | C8: 700 | D8: AS APPLICABLE | E8: 8380.08 | F8: 1523.6016 | G8: 77703.6816 | I8: 68500 | J8: 700 | K8: =K6 -> 700 | L8: AS APPLICABLE | M8: 8293.56 | N8: 1507.8712 | O8: 76901.4312
A10: 57GMR01 | B10: =B6+1500 -> 71000 | C10: 700 | D10: AS APPLICABLE | E10: 8689.08 | F10: 1579.7816 | G10: 80568.8616 | I10: 71000 | J10: 700 | K10: =K6 -> 700 | L10: AS APPLICABLE | M10: 8602.56 | N10: 1564.0512 | O10: 79766.6112
A11: 57GER01 | B11: =B6+1500 -> 71000 | C11: 700 | D11: AS APPLICABLE | E11: 8689.08 | F11: 1579.7816 | G11: 80568.8616 | I11: 71000 | J11: 700 | K11: =K6 -> 700 | L11: AS APPLICABLE | M11: 8602.56 | N11: 1564.0512 | O11: 79766.6112
A12: 57GMR03 | B12: =B6+500 -> 70000 | C12: 700 | D12: AS APPLICABLE | E12: 8565.48 | F12: 1557.3096 | G12: 79422.7896 | I12: 70000 | J12: 700 | K12: =K6 -> 700 | L12: AS APPLICABLE | M12: 8478.96 | N12: 1541.5792 | O12: 78620.5392
A13: 67GER01F | B13: =B6+300 -> 69800 | C13: 700 | D13: AS APPLICABLE | E13: =(B13-C13)*$E$11 -> 8540.76 | F13: =(B13-C13+E13)*$F$11 -> 1552.8152 | G13: =(B13-C13)+E13+F13 -> 79193.5752 | I13: =I6+300 -> 69800 | J13: 700 | K13: =K6 -> 700 | L13: AS APPLICABLE | M13: =(I13-J13-K13)*$E$11 -> 8454.24 | N13: =(I13-J13-K13+M13)*$F$11 -> 1537.0848 | O13: =I13-J13-K13+M13+N13 -> 78391.3248
A15: PLEASE NOTE THE FOLLOWING :
A16: 1) PLEASE NOTE ITS MANDATORY TO HAVE SERVICE TAX NO W.E.F 01.06.08 FOR DISPATCHES FROM RIL
A17: 2) CUSTOMERS HAVE TO SUBMIT ORIGINAL 'C' FORM IN ADVANCE AGAINST PURCHASES MADE FROM
A18: RELIANCE INDS. LTD.
A19: 3) SALES TAX / VAT AS APPLICABLE RATES WILL BE EXTRA FOR HAZIRA , GANDHAR & GODOWN SALES. | C19: 3A) UNLOADING CHARGES TO BE BORNE BY CUSTOMER IN CASE OF EX WORK SALE.
A20: 4) OCTROI & OTHER LOCAL LEVIES ARE TO BE BORNE BY THE CUSTOMER.
A21: 5) LOADING CHARGES AND TRANSPORTATION FOR EX.GODOWN SALES TO BE BORNE BY CUSTOMER.
A22: 6) INTEREST FREE CREDIT DAYS HAVE BEEN REDUCED FROM 14 TO 10 DAYS.
A25: QUANTITY DISCOUNT | J25: TRANSPORTATION WEF 1ST OCTOBER 2014
A26: QTY(MT) | B26: 0 < 27 | C26: 27 < 54 | D26: 54 <99 | E26: 99<198 | F26: 198 > | J26: DESTINATION | M26: BD | N26: Hazira | O26: Gandhar
B27: 0 | C27: 100 | D27: 200 | E27: 300 | F27: 400 | J27: ALWAR - JAIPUR | M27: 2563 | N27: 2653 | O27: 2584
J28: AHEMADNAGAR | M28: 1979 | N28: 1646 | O28: 1960
A29: REGIONAL DISCOUNT : RIL-Ex- WORKS - Hazira , Baroda , Gandhar as under. | J29: BHAMBORI | M29: 1545 | N29: 1177 | O29: 1495
A30: K6701/K67GER01/K67BER01 | J30: BARODA | M30: 421 | N30: 618 | O30: 612
A31: JALGAV/NAGPUR | C31: 1000 | D31: HYDERABAD | E31: 1500 | J31: BARSHI | M31: 2563 | N31: 2256 | O31: 2629
A32: MAHARASHTRA - MUM/BHIWNDI/KOL/SOLA/PUNE/AURNGBAD/ NASHIK | C32: 1500 | D32: SALEM | E32: 2500 | J32: BHUJ | M32: - | N32: 1215 | O32: 924
J33: BOISAR | M33: 1480 | N33: 875 | O33: 1520
A34: DMN/SILVASSA | C34: 1000 | D34: ALWAR-BHIWADI | E34: 250 | J34: DAMAN | M34: 930 | N34: 628 | O34: 930
A35: BARODA | C35: 500 | D35: JAIPUR | E35: 500 | J35: DEHRADUN | M35: 3415 | N35: 3625 | O35: 3669
A36: NOTE : The above disc shall be deducted from basic price. | J36: GOA | M36: 3340 | N36: 3314 | O36: 3309
J37: GONDIA | M37: - | N37: 2301 | O37: 2513
A38: D.E. Prices for Ex Fact- Hazira , Baroda , Gandhar Complexes | J38: GARADHIA | M38: 515 | N38: 653 | O38: 546
A39: Location | B39: Type | C39: 67.01 | D39: 57GER01 | J39: HARIDWAR | M39: 3324 | N39: 3524 | O39: 3594
C40: 67GER01 | D40: 57GMR01 | E40: 67.11 | F40: 67GER01F | J40: JALGAON | M40: 1509 | N40: 1211 | O40: 1528
A41: EX WORKS HZ , BC & GC. | B41: EOU-CT3/AIL | C41: =B6-6500 -> 63000 | D41: =B6-5000 -> 64500 | E41: =B6-6000 -> 63500 | F41: =B6-6200 -> 63300 | J41: RAVER | M41: 1641 | N41: 1263 | O41: 1621
J42: JAMMU | M42: 4141 | N42: 3851 | O42: 4077
J43: MUMBAI | M43: 1626 | N43: 1142 | O43: 1661
J44: NALGONDA | M44: 3250 * | N44: 3047 | O44: 3299
J45: NASHIK | M45: 1555 | N45: 1285 | O45: 1596
J46: NAGPUR | M46: 2584 | N46: 2254 | O46: 2422
J47: PHALTAN | M47: - | N47: 2231 | O47: -
J48: SANGLI | M48: 2352 | N48: 2271 | O48: 2577
J49: SATARA | M49: 2291 | N49: 2231 | O49: 2250 *
J50: SILVASSA | M50: 920 | N50: 633 | O50: 972
J51: SOLAPUR | M51: 2563 | N51: 2256 | O51: 2629
J52: TALASARI | M52: 1429 | N52: 701 | O52: 1470
J53: UMERGAON | M53: 880 | N53: 595 | O53: 722
J54: VASAI | M54: 1550 | N54: 971 | O54: 1520
J55: UDMALPET | M55: 4724 | N55: 4544 | O55: 4666
J56: RAIGAD/MAHAD | M56: 1792 | N56: 1381
A61: WISHING YOU EVERY SUCCESS AT ALL TIME.
A62: Thanks & Regards,;
A63: Anil Mistry M-7738006668
A64: (Manager - Sales_
A65: e-mail: anil_mistry@vipl.com
A66: Ph.022-26824334/5/6

Sheet 30.10.14
Z2: www.vipl.com
A4: Tel: +91-22-26824334 / 26824345 / 46 / 47. Fax: +91-22-26823662 E mail : vipl@vipl.com; info@vipl.com
A5: PRICES FOR RELIANCE INDS LTD. REON PVC w.e.f. 30TH OCTOBER - 2014 0600 AM : intro ld/rd1/4/14 REDUCTION
A7: EX WORKS PRICE 30.10.14 | Q7: EX DEPOT PRICE 30.10.14
A8: EX-WORKS - HAZIRA / BARODA / GANDHAR Location Disc in MAHARASHTRA , DAMAN , SILVASSA. | T8: PRIME-GRADES | Y8: OFF-GRADES
C9: CREDIT | K9: CASH | T9: 67-01/67BER01/67GER01 | U9: 67-11 | V9: 57GER01 | W9: 57GMR01 | X9: 67GER01F | Y9: 67-03/67BER03/67GER03 | Z9: 57GMR03
A10: GRADE | B10: NET | C10: LESS | D10: LESS | E10: EXCISE | F10: CST | G10: LANDED | I10: NET | J10: LESS | K10: Less | L10: LESS | M10: EXCISE | N10: CST | O10: LANDED
B11: BASIC | C11: LOC DISC | D11: REG DISC | E11: 0.1236 | F11: 0.02 | G11: EX-PLANT | I11: BASIC | J11: LOC DISC | K11: Cach Disc | L11: REG DISC | M11: 0.1236 | N11: =F11 -> 0.02 | O11: EX-PLANT | Q11: MUMBAI /PANVEL | R11: CRDT. | S11: BASIC | T11: 69437 | U11: =T11+500 -> 69937 | V11: =T11+1500 -> 70937 | W11: =T11+1500 -> 70937 | X11: =T11+300 -> 69737 | Y11: =T11-1000 -> 68437 | Z11: =T11+500 -> 69937
A12: 67-01/67BER01/67GER01 | B12: 69500 | C12: 700 | D12: AS APPLICABLE | E12: =(B12-C12)*$E$11 -> 8503.68 | F12: =(B12-C12+E12)*$F$11 -> 1546.0736 | G12: =(B12-C12)+E12+F12 -> 78849.7536 | I12: =B12 -> 69500 | J12: =C12 -> 700 | K12: 700 | L12: AS APPLICABLE | M12: =(I12-J12-K12)*$E$11 -> 8417.16 | N12: =(I12-J12-K12+M12)*$F$11 -> 1530.3432 | O12: =I12-J12-K12+M12+N12 -> 78047.5032 | S12: EX.DUTY 12.36% | T12: =SUM(T11*12.36%) -> 8582.4132 | U12: 8644.2132 | V12: 8767.8132 | W12: 8767.8132 | X12: 8619.4932 | Y12: 8458.8132 | Z12: 8644.2132
A13: 67-11 | B13: =B12+500 -> 70000 | C13: 700 | D13: AS APPLICABLE | E13: 8565.48 | F13: 1557.3096 | G13: 79422.7896 | I13: 70000 | J13: =C13 -> 700 | K13: =K12 -> 700 | L13: AS APPLICABLE | M13: =(I13-J13-K13)*$E$11 -> 8478.96 | N13: 1541.5792 | O13: 78620.5392 | S13: TRADE DISC. | T13: 0 | U13: 0 | V13: 0 | W13: 0 | X13: 0 | Y13: 0 | Z13: 0
A14: 67-03/67BER03/67GER03 | B14: =B12-1000 -> 68500 | C14: 700 | D14: AS APPLICABLE | E14: 8380.08 | F14: 1523.6016 | G14: 77703.6816 | I14: 68500 | J14: 700 | K14: =K12 -> 700 | L14: AS APPLICABLE | M14: 8293.56 | N14: 1507.8712 | O14: 76901.4312 | S14: EX-GODOWN | T14: =T11+T12 -> 78019.4132 | U14: 78581.2132 | V14: 79704.8132 | W14: 79704.8132 | X14: 78356.4932 | Y14: 76895.8132 | Z14: 78581.2132
R15: CASH | S15: CASH.DISC | T15: 700 | U15: =T15 -> 700 | V15: 700 | W15: 700 | X15: 700 | Y15: 700 | Z15: 700
A16: 57GMR01 | B16: =B12+1500 -> 71000 | C16: 700 | D16: AS APPLICABLE | E16: 8689.08 | F16: 1579.7816 | G16: 80568.8616 | I16: 71000 | J16: 700 | K16: =K12 -> 700 | L16: AS APPLICABLE | M16: 8602.56 | N16: 1564.0512 | O16: 79766.6112 | S16: EX-GODOWN | T16: =T14-T15 -> 77319.4132 | U16: 77881.2132 | V16: 79004.8132 | W16: 79004.8132 | X16: 77656.4932 | Y16: 76195.8132 | Z16: 77881.2132
A17: 57GER01 | B17: =B12+1500 -> 71000 | C17: 700 | D17: AS APPLICABLE | E17: 8689.08 | F17: 1579.7816 | G17: 80568.8616 | I17: 71000 | J17: 700 | K17: =K12 -> 700 | L17: AS APPLICABLE | M17: 8602.56 | N17: 1564.0512 | O17: 79766.6112
A18: 57GMR03 | B18: =B12+500 -> 70000 | C18: 700 | D18: AS APPLICABLE | E18: 8565.48 | F18: 1557.3096 | G18: 79422.7896 | I18: 70000 | J18: 700 | K18: =K12 -> 700 | L18: AS APPLICABLE | M18: 8478.96 | N18: 1541.5792 | O18: 78620.5392 | Q18: Daman | R18: CRDT. | S18: BASIC | T18: =T11-145 -> 69292 | U18: =T18+500 -> 69792 | V18: =T18+1500 -> 70792 | W18: =T18+1500 -> 70792 | X18: =T18+300 -> 69592 | Y18: =T18-1000 -> 68292 | Z18: =T18+500 -> 69792
A19: 67GER01F | B19: =B12+300 -> 69800 | C19: 700 | D19: AS APPLICABLE | E19: =(B19-C19)*$E$11 -> 8540.76 | F19: =(B19-C19+E19)*$F$11 -> 1552.8152 | G19: =(B19-C19)+E19+F19 -> 79193.5752 | I19: =I12+300 -> 69800 | J19: 700 | K19: =K12 -> 700 | L19: AS APPLICABLE | M19: =(I19-J19-K19)*$E$11 -> 8454.24 | N19: =(I19-J19-K19+M19)*$F$11 -> 1537.0848 | O19: =I19-J19-K19+M19+N19 -> 78391.3248 | S19: EX.DUTY 12.36% | T19: =SUM(T18*12.36%) -> 8564.4912 | U19: 8626.2912 | V19: 8749.8912 | W19: 8749.8912 | X19: 8601.5712 | Y19: 8440.8912 | Z19: 8626.2912
S20: TRADE DISC. | T20: 0 | U20: 0 | V20: 0 | W20: 0 | X20: 0 | Y20: 0 | Z20: 0
A21: PLEASE NOTE THE FOLLOWING : | S21: EX-GODOWN | T21: =T18+T19 -> 77856.4912 | U21: 78418.2912 | V21: 79541.8912 | W21: 79541.8912 | X21: 78193.5712 | Y21: 76732.8912 | Z21: 78418.2912
A22: 1) PLEASE NOTE ITS MANDATORY TO HAVE SERVICE TAX NO W.E.F 01.06.08 FOR DISPATCHES FROM RIL | R22: CASH | S22: CASH.DISC | T22: =T15 -> 700 | U22: =U15 -> 700 | V22: 700 | W22: 700 | X22: 700 | Y22: 700 | Z22: 700
A23: 2) CUSTOMERS HAVE TO SUBMIT ORIGINAL 'C' FORM IN ADVANCE AGAINST PURCHASES MADE FROM | S23: EX-GODOWN | T23: =T21-T22 -> 77156.4912 | U23: 77718.2912 | V23: 78841.8912 | W23: 78841.8912 | X23: 77493.5712 | Y23: 76032.8912 | Z23: 77718.2912
A24: RELIANCE INDS. LTD.
A25: 3) SALES TAX / VAT AS APPLICABLE RATES WILL BE EXTRA FOR HAZIRA , GANDHAR & GODOWN SALES. | C25: 3A) UNLOADING CHARGES TO BE BORNE BY CUSTOMER IN CASE OF EX WORK SALE. | Q25: Jalgaon | R25: CRDT. | S25: BASIC | T25: =T11+432 -> 69869 | U25: =T25+500 -> 70369 | V25: =T25+1500 -> 71369 | W25: =T25+1500 -> 71369 | X25: =T25+300 -> 70169 | Y25: =T25-1000 -> 68869 | Z25: =T25+500 -> 70369
A26: 4) OCTROI & OTHER LOCAL LEVIES ARE TO BE BORNE BY THE CUSTOMER. | S26: EX.DUTY 12.36% | T26: =SUM(T25*12.36%) -> 8635.8084 | U26: 8697.6084 | V26: 8821.2084 | W26: 8821.2084 | X26: 8672.8884 | Y26: 8512.2084 | Z26: 8697.6084
A27: 5) LOADING CHARGES AND TRANSPORTATION FOR EX.GODOWN SALES TO BE BORNE BY CUSTOMER. | S27: TRADE DISC. | T27: 0 | U27: 0 | V27: 0 | W27: 0 | X27: 0 | Y27: 0 | Z27: 0
A28: 6) INTEREST FREE CREDIT DAYS HAVE BEEN REDUCED FROM 14 TO 10 DAYS. | S28: EX-GODOWN | T28: =T25+T26 -> 78504.8084 | U28: 79066.6084 | V28: 80190.2084 | W28: 80190.2084 | X28: 78841.8884 | Y28: 77381.2084 | Z28: 79066.6084
R29: CASH | S29: CASH.DISC | T29: =T15 -> 700 | U29: =U15 -> 700 | V29: 700 | W29: 700 | X29: 700 | Y29: 700 | Z29: 700
S30: EX-GODOWN | T30: =T28-T29 -> 77804.8084 | U30: 78366.6084 | V30: 79490.2084 | W30: 79490.2084 | X30: 78141.8884 | Y30: 76681.2084 | Z30: 78366.6084
A31: QUANTITY DISCOUNT | J31: TRANSPORTATION WEF 1ST OCTOBER 2014
A32: QTY(MT) | B32: 0 < 27 | C32: 27 < 54 | D32: 54 <99 | E32: 99<198 | F32: 198 > | J32: DESTINATION | M32: BD | N32: Hazira | O32: Gandhar | Q32: Pune | R32: CRDT. | S32: BASIC | T32: =T11+603 -> 70040 | U32: =T32+500 -> 70540 | V32: =T32+1500 -> 71540 | W32: =T32+1500 -> 71540 | X32: =T32+300 -> 70340 | Y32: =T32-1000 -> 69040 | Z32: =T32+500 -> 70540
B33: 0 | C33: 100 | D33: 200 | E33: 300 | F33: 400 | J33: ALWAR - JAIPUR | M33: 2563 | N33: 2653 | O33: 2584 | S33: EX.DUTY 12.36% | T33: =SUM(T32*12.36%) -> 8656.944 | U33: 8718.744 | V33: 8842.344 | W33: 8842.344 | X33: 8694.024 | Y33: 8533.344 | Z33: 8718.744
J34: AHEMADNAGAR | M34: 1979 | N34: 1646 | O34: 1960 | S34: TRADE DISC. | T34: 0 | U34: 0 | V34: 0 | W34: 0 | X34: 0 | Y34: 0 | Z34: 0
A35: REGIONAL DISCOUNT : RIL-Ex- WORKS - Hazira , Baroda , Gandhar as under. | J35: BHAMBORI | M35: 1545 | N35: 1177 | O35: 1495 | S35: EX-GODOWN | T35: =T32+T33 -> 78696.944 | U35: 79258.744 | V35: 80382.344 | W35: 80382.344 | X35: 79034.024 | Y35: 77573.344 | Z35: 79258.744
A36: K6701/K67GER01/K67BER01 | J36: BARODA | M36: 421 | N36: 618 | O36: 612 | R36: CASH | S36: CASH.DISC | T36: =T15 -> 700 | U36: =U15 -> 700 | V36: 700 | W36: 700 | X36: 700 | Y36: 700 | Z36: 700
A37: JALGAV/NAGPUR | C37: 1000 | D37: HYDERABAD | E37: 1500 | J37: BARSHI | M37: 2563 | N37: 2256 | O37: 2629 | S37: EX-GODOWN | T37: =T35-T36 -> 77996.944 | U37: 78558.744 | V37: 79682.344 | W37: 79682.344 | X37: 78334.024 | Y37: 76873.344 | Z37: 78558.744
A38: MAHARASHTRA - MUM/BHIWNDI/KOL/SOLA/PUNE/AURNGBAD/ NASHIK | C38: 1500 | D38: SALEM | E38: 2500 | J38: BHUJ | M38: - | N38: 1215 | O38: 924
J39: BOISAR | M39: 1480 | N39: 875 | O39: 1520 | Q39: Silvassa | R39: CRDT. | S39: BASIC | T39: =T11-129 -> 69308 | U39: =T39+500 -> 69808 | V39: =T39+1500 -> 70808 | W39: =T39+1500 -> 70808 | X39: =T39+300 -> 69608 | Y39: =T39-1000 -> 68308 | Z39: =T39+500 -> 69808
A40: DMN/SILVASSA | C40: 1000 | D40: ALWAR-BHIWADI | E40: 250 | J40: DAMAN | M40: 930 | N40: 628 | O40: 930 | S40: EX.DUTY 12.36% | T40: =SUM(T39*12.36%) -> 8566.4688 | U40: 8628.2688 | V40: 8751.8688 | W40: 8751.8688 | X40: 8603.5488 | Y40: 8442.8688 | Z40: 8628.2688
A41: BARODA | C41: 500 | D41: JAIPUR | E41: 500 | J41: DEHRADUN | M41: 3415 | N41: 3625 | O41: 3669 | S41: TRADE DISC. | T41: 0 | U41: 0 | V41: 0 | W41: 0 | X41: 0 | Y41: 0 | Z41: 0
A42: NOTE : The above disc shall be deducted from basic price. | J42: GOA | M42: 3340 | N42: 3314 | O42: 3309 | S42: EX-GODOWN | T42: =T39+T40 -> 77874.4688 | U42: 78436.2688 | V42: 79559.8688 | W42: 79559.8688 | X42: 78211.5488 | Y42: 76750.8688 | Z42: 78436.2688
J43: GONDIA | M43: - | N43: 2301 | O43: 2513 | R43: CASH | S43: CASH.DISC | T43: =T15 -> 700 | U43: =U15 -> 700 | V43: 700 | W43: 700 | X43: 700 | Y43: 700 | Z43: 700
A44: D.E. Prices for Ex Fact- Hazira , Baroda , Gandhar Complexes | J44: GARADHIA | M44: 515 | N44: 653 | O44: 546 | S44: EX-GODOWN | T44: =T42-T43 -> 77174.4688 | U44: 77736.2688 | V44: 78859.8688 | W44: 78859.8688 | X44: 77511.5488 | Y44: 76050.8688 | Z44: 77736.2688
A45: Location | B45: Type | C45: 67.01 | D45: 57GER01 | J45: HARIDWAR | M45: 3324 | N45: 3524 | O45: 3594
C46: 67GER01 | D46: 57GMR01 | E46: 67.11 | F46: 67GER01F | J46: JALGAON | M46: 1509 | N46: 1211 | O46: 1528 | Q46: Suryapet-hyd | R46: CRDT. | S46: BASIC | T46: =T11+2051 -> 71488 | U46: =T46+500 -> 71988 | V46: =T46+1500 -> 72988 | W46: =T46+1500 -> 72988 | X46: =T46+300 -> 71788 | Y46: =T46-1000 -> 70488 | Z46: =T46+500 -> 71988
A47: EX WORKS HZ , BC & GC. | B47: EOU-CT3/AIL | C47: =B12-6500 -> 63000 | D47: =B12-5000 -> 64500 | E47: =B12-6000 -> 63500 | F47: =B12-6200 -> 63300 | J47: RAVER | M47: 1641 | N47: 1263 | O47: 1621 | S47: EX.DUTY 12.36% | T47: =SUM(T46*12.36%) -> 8835.9168 | U47: 8897.7168 | V47: 9021.3168 | W47: 9021.3168 | X47: 8872.9968 | Y47: 8712.3168 | Z47: 8897.7168
J48: JAMMU | M48: 4141 | N48: 3851 | O48: 4077 | S48: TRADE DISC. | T48: 0 | U48: 0 | V48: 0 | W48: 0 | X48: 0 | Y48: 0 | Z48: 0
J49: MUMBAI | M49: 1626 | N49: 1142 | O49: 1661 | S49: EX-GODOWN | T49: =T46+T47 -> 80323.9168 | U49: 80885.7168 | V49: 82009.3168 | W49: 82009.3168 | X49: 80660.9968 | Y49: 79200.3168 | Z49: 80885.7168
J50: NALGONDA | M50: 3250 * | N50: 3047 | O50: 3299 | R50: CASH | S50: CASH.DISC | T50: =T15 -> 700 | U50: =U15 -> 700 | V50: 700 | W50: 700 | X50: 700 | Y50: 700 | Z50: 700
J51: NASHIK | M51: 1555 | N51: 1285 | O51: 1596 | S51: EX-GODOWN | T51: =T49-T50 -> 79623.9168 | U51: 80185.7168 | V51: 81309.3168 | W51: 81309.3168 | X51: 79960.9968 | Y51: 78500.3168 | Z51: 80185.7168
J52: NAGPUR | M52: 2584 | N52: 2254 | O52: 2422
J53: PHALTAN | M53: - | N53: 2231 | O53: - | Q53: Salem | R53: CRDT. | S53: BASIC | T53: =T11+2052 -> 71489 | U53: =T53+500 -> 71989 | V53: =T53+1500 -> 72989 | W53: =T53+1500 -> 72989 | X53: =T53+300 -> 71789 | Y53: =T53-1000 -> 70489 | Z53: =T53+500 -> 71989
J54: SANGLI | M54: 2352 | N54: 2271 | O54: 2577 | S54: EX.DUTY 12.36% | T54: =SUM(T53*12.36%) -> 8836.0404 | U54: 8897.8404 | V54: 9021.4404 | W54: 9021.4404 | X54: 8873.1204 | Y54: 8712.4404 | Z54: 8897.8404
J55: SATARA | M55: 2291 | N55: 2231 | O55: 2250 * | S55: TRADE DISC. | T55: =T15 -> 700 | U55: =U15 -> 700 | V55: 700 | W55: 700 | X55: 700 | Y55: 700 | Z55: 700
J56: SILVASSA | M56: 920 | N56: 633 | O56: 972 | S56: EX-GODOWN | T56: =T53+T54 -> 80325.0404 | U56: 80886.8404 | V56: 82010.4404 | W56: 82010.4404 | X56: 80662.1204 | Y56: 79201.4404 | Z56: 80886.8404
J57: SOLAPUR | M57: 2563 | N57: 2256 | O57: 2629 | R57: CASH | S57: CASH.DISC | T57: =T15 -> 700 | U57: =U15 -> 700 | V57: 700 | W57: 700 | X57: 700 | Y57: 700 | Z57: 700
J58: TALASARI | M58: 1429 | N58: 701 | O58: 1470 | S58: EX-GODOWN | T58: =T56-T57 -> 79625.0404 | U58: 80186.8404 | V58: 81310.4404 | W58: 81310.4404 | X58: 79962.1204 | Y58: 78501.4404 | Z58: 80186.8404
J59: UMERGAON | M59: 880 | N59: 595 | O59: 722
J60: VASAI | M60: 1550 | N60: 971 | O60: 1520 | Q60: Baddi | R60: CRDT. | S60: BASIC | T60: =T11+3588 -> 73025 | U60: =T60+500 -> 73525 | V60: =T60+1500 -> 74525 | W60: =T60+1500 -> 74525 | X60: =T60+300 -> 73325 | Y60: =T60-1000 -> 72025 | Z60: =T60+500 -> 73525
J61: UDMALPET | M61: 4724 | N61: 4544 | O61: 4666 | S61: EX.DUTY 12.36% | T61: =SUM(T60*12.36%) -> 9025.89 | U61: 9087.69 | V61: 9211.29 | W61: 9211.29 | X61: 9062.97 | Y61: 8902.29 | Z61: 9087.69
J62: RAIGAD/MAHAD | M62: 1792 | N62: 1381 | S62: TRADE DISC. | T62: 0 | U62: 0 | V62: 0 | W62: 0 | X62: 0 | Y62: 0 | Z62: 0
S63: EX-GODOWN | T63: =T60+T61 -> 82050.89 | U63: 82612.69 | V63: 83736.29 | W63: 83736.29 | X63: 82387.97 | Y63: 80927.29 | Z63: 82612.69
R64: CASH | S64: CASH.DISC | T64: =T15 -> 700 | U64: =U15 -> 700 | V64: 700 | W64: 700 | X64: 700 | Y64: 700 | Z64: 700
S65: EX-GODOWN | T65: =T63-T64 -> 81350.89 | U65: 81912.69 | V65: 83036.29 | W65: 83036.29 | X65: 81687.97 | Y65: 80227.29 | Z65: 81912.69
A67: WISHING YOU EVERY SUCCESS AT ALL TIME. | Q67: JAIPUR | R67: CRDT. | S67: BASIC | T67: =T11+1604 -> 71041 | U67: =T67+500 -> 71541 | V67: =T67+1500 -> 72541 | W67: =T67+1500 -> 72541 | X67: =T67+300 -> 71341 | Y67: =T67-1000 -> 70041 | Z67: =T67+500 -> 71541
A68: Thanks & Regards,; | S68: EX.DUTY 12.36% | T68: =SUM(T67*12.36%) -> 8780.6676 | U68: 8842.4676 | V68: 8966.0676 | W68: 8966.0676 | X68: 8817.7476 | Y68: 8657.0676 | Z68: 8842.4676
A69: Anil Mistry M-7738006668 | S69: TRADE DISC. | T69: 0 | U69: 0 | V69: 0 | W69: 0 | X69: 0 | Y69: 0 | Z69: 0
A70: (Manager - Sales_ | S70: EX-GODOWN | T70: =T67+T68 -> 79821.6676 | U70: 80383.4676 | V70: 81507.0676 | W70: 81507.0676 | X70: 80158.7476 | Y70: 78698.0676 | Z70: 80383.4676
A71: e-mail: anil_mistry@vipl.com | R71: CASH | S71: CASH.DISC | T71: =T22 -> 700 | U71: =U22 -> 700 | V71: 700 | W71: 700 | X71: 700 | Y71: 700 | Z71: 700
A72: Ph.022-26824334/5/6 | S72: EX-GODOWN | T72: =T70-T71 -> 79121.6676 | U72: 79683.4676 | V72: 80807.0676 | W72: 80807.0676 | X72: 79458.7476 | Y72: 77998.0676 | Z72: 79683.4676
